Cogmind - Beta 16 @@@ ROGUE MODE // 2026.01.11 @ 14:07:20 Player: PE-P51 Result: Destroyed by 8R-AWN with 8R-AWN's Boregun Performance ------------- Evolutions (1) 500 Regions Visited (5) 1000 Robots Destroyed (49) 245 Value Destroyed (1123) 1123 Prototype IDs (34) 680 Alien Tech Used (0) 0 Bonus (-231) -231 TOTAL SCORE: 3317 Bonus ------- Aligned with FarCom 300 Friendly Fire -531 Cogmind --------- Core Integrity 0/400 Matter 300/300 Energy 100/100 System Corruption 2% Temperature Cool (0) Movement Core (350) Ox6 Location -9/Exiles Parts ------- > --- POWER (1) -------- (None) > --- PROPULSION (3) --- (None) > --- UTILITY (3) ------ Large Storage Unit Transport Network Coupler > --- WEAPON (2) ------- (None) > --- INVENTORY (15) --- Light Treads Light Treads Light Treads Light Treads Light Treads Improved Treads Improved Treads Heat Sink Small Storage Unit Medium Storage Unit Machine Analyzer Medium Laser Light Assault Rifle Light Assault Rifle Heavy Assault Rifle Peak State ------------ > --- POWER ------------ Improved Ion Engine > --- PROPULSION ------- Light Treads Improved Treads Improved Treads > --- UTILITY ---------- Improved Heat Sink Large Storage Unit Transport Network Coupler > --- WEAPON ----------- YOLO Cannon > --- INVENTORY -------- Light Treads Light Treads Light Treads Light Treads Light Treads Improved Treads Improved Treads Heat Sink Small Storage Unit Medium Storage Unit Machine Analyzer Medium Laser Light Assault Rifle Light Assault Rifle Heavy Assault Rifle [Rating: 34] Favorites ----------- Power Cooled Ion Engine Engine Cooled Ion Engine Propulsion Light Treads Treads Light Treads Leg Aluminum Leg Utility Transport Network Coupler Device Improved Heat Sink Storage Large Storage Unit Processor Transport Network Coupler Protection Light Armor Plating Weapon Assault Rifle Energy Gun Medium Laser Energy Cannon YOLO Cannon Ballistic Gun Assault Rifle Launcher Grenade Launcher Build | -11 -10 -10 -9 -9 -9 ------- Run | Yrd Mat Min Mat Min Exi Slots Evolved 2 | . . . 2 . . Power . | . . . . . . Propulsion 1 | . . . 1 . . Utility 1 | . . . 1 . . Weapon . | . . . . . . Parts Attached 36 | . 5 . 29 1 1 Power 3 | . 1 . 2 . . Engine 3 | . 1 . 2 . . Core . | . . . . . . Reactor . | . . . . . . Propulsion 13 | . 2 . 11 . . Treads 13 | . 2 . 11 . . Leg . | . . . . . . Wheel . | . . . . . . Hover . | . . . . . . Flight . | . . . . . . Utility 7 | . 2 . 5 . . Device 1 | . . . 1 . . Storage 2 | . 1 . 1 . . Processor 1 | . 1 . . . . Hackware . | . . . . . . Protection 3 | . . . 3 . . Artifact . | . . . . . . Weapon 13 | . . . 11 1 1 Energy Gun 2 | . . . 2 . . Energy Cannon 1 | . . . . . 1 Ballistic Gun 9 | . . . 8 1 . Ballistic Cannon . | . . . . . . Launcher 1 | . . . 1 . . Special Weapon . | . . . . . . Impact Weapon . | . . . . . . Slashing Weapon . | . . . . . . Piercing Weapon . | . . . . . . Special Melee Weapon . | . . . . . . Unidentified Prototypes 3 | . 1 . 2 . . Parts Lost 14 | . . . 7 1 6 Power 3 | . . . 2 . 1 Propulsion 5 | . . . 2 . 3 Utility 2 | . . . 1 . 1 Weapon 4 | . . . 2 1 1 Highest Loss Streak 6 | . . . 5 1 6 To Critical Strikes 4 | . . . . . 4 Average Backups 11 | . 8 9 12 15 15 Power . | . 1 1 . . . Propulsion 5 | . 4 4 5 7 7 Utility 2 | . . 1 2 4 4 Weapon 3 | . 2 3 4 4 4 Tool/Special . | . . . . . . Unused Backups 15 | . 3 . 3 . 9 Power 3 | . 2 . 1 . . Propulsion 4 | . . . . . 4 Utility 3 | . . . . . 3 Weapon 5 | . 1 . 2 . 2 Tool/Special . | . . . . . . Average Slot Usage (%) 92 | . 89 100 93 98 78 Engine 12 | . 14 14 10 11 11 Treads 26 | . 8 28 31 33 30 Leg 3 | . 19 . . . . Device 3 | . . . 2 11 11 Storage 12 | . 14 14 11 11 11 Processor 10 | . 4 14 11 11 11 Protection 1 | . . . 3 . . Energy Gun 6 | . 14 14 2 . . Ballistic Gun 15 | . 14 14 19 20 . Peak Build Rating 34 | . 10 10 19 19 34 Average Rating 13 | . 8 10 15 16 20 On Entrance 11 | 6 6 10 10 19 17 Avg Prop Armor Cover (%) . | . . . . . . Naked Turns . | . . . . . . Heaviest Build 46 | 12 22 22 37 32 46 Greatest Support 66 | 20 40 40 66 66 66 Greatest Overweight (x) 9 | . 1 . 1 . 9 Average Overweight (x) . | . . . . . . Largest Inventory Capacity 15 | . 10 10 15 15 15 Average Capacity 12 | . 9 10 13 15 15 Most Carried 15 | . 10 9 15 15 15 Average Carried 11 | . 8 9 12 15 14 Final Capacity 15 | 8 10 10 15 15 15 Final Carried 15 | 6 9 9 15 15 15 Class Distribution -------------------- 55% | Scavenger-Mutant 44% | Mutant Dominant Class ---------------- Mutant | -10/Materials Mutant | -10/Mines Scavenger-Mutant | -9/Materials Scavenger-Mutant | -9/Mines Scavenger-Mutant | -9/Exiles Resources | -11 -10 -10 -9 -9 -9 ----------- Run | Yrd Mat Min Mat Min Exi Matter Collected 1153 | 164 93 45 828 23 . Remotely . | . . . . . . Salvage Created 1490 | . 254 . 1149 49 38 Parts 101 | . 17 . 76 6 2 Haulers Intercepted 5 | . 2 . 3 . . Recyclers Shooed 2 | . . . 2 . . Parts Field Recycled . | . . . . . . Retrieved Matter . | . . . . . . Parts Self-Destructed . | . . . . . . Prevented . | . . . . . . Parts Restored . | . . . . . . Kills | -11 -10 -10 -9 -9 -9 ------- Run | Yrd Mat Min Mat Min Exi Combat Hostiles Destroyed 40 | . 4 1 25 3 7 Guns 27 | . 4 1 19 3 . Cannons 3 | . . . . . 3 AOE 10 | . . . 6 . 4 Classes Destroyed 12 | . 6 1 4 . 1 Worker 3 | . 1 . 2 . . Builder 1 | . 1 . . . . Hauler 5 | . 2 . 3 . . Recycler 1 | . . . 1 . . Mechanic 1 | . . . 1 . . Watcher 4 | . 1 . 3 . . Swarmer 14 | . 2 . 9 3 . Grunt 12 | . 2 . 10 . . Brawler 1 | . . . 1 . . Sentry 5 | . . . 5 . . Demolisher 1 | . . 1 . . . Assembled 7 | . . . . . 7 Best Kill Streak 8 | . 4 1 6 3 8 Combat Bots Only 7 | . 3 1 4 3 7 Max Kills in Single Turn 4 | . 3 1 4 1 2 Gunslinging 1 | . . . 1 . . Exploded 3 | . . . 3 . 2 Melee . | . . . . . . Uniques/NPCs Destroyed 1 | . . . . . 1 EX-BIN (-9/Exiles) Combat | -11 -10 -10 -9 -9 -9 -------- Run | Yrd Mat Min Mat Min Exi Hostile Shots Fired 286 | . 24 1 198 5 58 Missed 80 | . 8 . 51 2 19 Hits 206 | . 16 1 147 3 39 Melee 1 | . . . 1 . . Projectile 205 | . 16 1 146 3 39 AOE 1 | . . 1 . . . Critical Strikes 22 | . . . 6 . 16 Part Disruptions 1 | . . . . . 1 Damage Taken 3079 | . 313 36 1938 24 768 Core 522 | . 117 . 272 . 133 Absorbed by Shields . | . . . . . . Core Remaining (%) 76 | 100 . 53 . . . Volleys Fired 156 | . 17 3 117 5 14 Largest 2 | . 2 2 2 2 1 Hottest 100 | . 70 70 79 46 100 Shots Fired 250 | . 33 6 191 6 14 Gun 228 | . 33 6 183 6 . Cannon 14 | . . . . . 14 Launcher 8 | . . . 8 . . Special . | . . . . . . Kinetic 186 | . 17 3 160 6 . Thermal 56 | . 16 3 23 . 14 Explosive 8 | . . . 8 . . Electromagnetic . | . . . . . . Robot Hit Streak 14 | . 6 1 14 3 5 Robot Miss Streak 4 | . 4 4 4 1 2 Penetration Max . | . . . . . . Secondary Targets 5 | . 2 . 3 . . Max Gunslinging Chain 1 | . 1 . 1 . . Shots Hit Robots 152 | . 17 1 120 3 11 Core Hits 80 | . 13 1 54 3 9 Critical Kills . | . . . . . . Critical Parts Destroyed 2 | . . . 2 . . Critical Strikes 6 | . 1 . 5 . . Burn 4 | . 1 . 3 . . Destroy 2 | . . . 2 . . Melee Attacks . | . . . . . . Impact . | . . . . . . Slashing . | . . . . . . Piercing . | . . . . . . Sneak Attacks . | . . . . . . Combat Hostiles . | . . . . . . Follow-up Attacks . | . . . . . . Damage Inflicted 3617 | . 442 19 2016 50 1090 Guns 1876 | . 219 12 1595 50 . Cannons 602 | . . . . . 602 Explosions 1119 | . 220 . 411 . 488 Melee . | . . . . . . Ramming 20 | . 3 7 10 . . Kinetic 1612 | . 120 . 1442 50 . Thermal 1574 | . 319 12 153 . 1090 Explosive 411 | . . . 411 . . Electromagnetic . | . . . . . . Impact . | . . . . . . Slashing . | . . . . . . Piercing . | . . . . . . Highest Corruption 2 | . . . 2 2 2 Average Corruption 2 | . . . 2 2 2 Corruption Purged . | . . . . . . Corruption Blocked . | . . . . . . Effects 6 | . . . 2 . 4 Message Errors 1 | . . . . . 1 Matter Fused 1 | . . . . . 1 Heat Flow Errors 2 | . . . . . 2 Energy Discharges 1 | . . . 1 . . Data Loss (major) 1 | . . . 1 . . Overload Shots . | . . . . . . Overflow Damage 185 | . 60 . 6 . 119 Projectiles 91 | . . . . . 91 Explosions 94 | . 60 . 6 . 28 Melee . | . . . . . . Knockbacks . | . . . . . . Impact . | . . . . . . Kinetic . | . . . . . . Secondary . | . . . . . . Self-Inflicted Damage 366 | . 114 . 89 . 163 Shots 11 | . 3 . 5 . 3 Rammed 4 | . . 1 3 . . Targets Rammed 5 | . 1 1 3 . . Kicked 1 | . 1 . . . . Crushed . | . . . . . . Highest Temperature 236 | . 54 6 236 . 112 Average Temperature 39 | . 15 3 59 . 42 Received Heat Transfer 917 | . 96 . 801 . 20 Siege Activations . | . . . . . . Martial Activations . | . . . . . . Shielding Activations . | . . . . . . Robots Disrupted . | . . . . . . Combat Hostiles . | . . . . . . Robots Corrupted . | . . . . . . Combat Hostiles . | . . . . . . Parts Fried . | . . . . . . Impact Corruptions . | . . . . . . Robots Melted . | . . . . . . Combat Hostiles . | . . . . . . Parts Melted 5 | . . . 1 . 4 Heat Transferred 2189 | . 520 37 592 . 1040 Parts Sabotaged . | . . . . . . Parts Stolen . | . . . . . . Parts Stripped . | . . . . . . Power Chain Reactions . | . . . . . . Alert | -11 -10 -10 -9 -9 -9 ------- Run | Yrd Mat Min Mat Min Exi Maximum Alert Level 1 | . 1 . 1 . . Low Security (%) 80 | . 76 100 74 100 . Level 1 19 | . 23 . 25 . . Level 2 . | . . . . . . Level 3 . | . . . . . . Level 4 . | . . . . . . Level 5 . | . . . . . . High Security . | . . . . . . Max Security . | . . . . . . Peak Influence 308 | . 285 88 308 180 . Initial 120 | . . 88 . 120 . Average 104 | . 77 19 138 152 . Influence Increases 1335 | . 357 20 888 70 . Destroy 0b10 Robot/C 660 | . 80 20 500 60 . Destroy 0b10 Robot/NC 75 | . 25 . 50 . . Destroy Leader 178 | . 26 . 142 10 . Successful Hack 34 | . . . 34 . . Disable Machine 180 | . 165 . 15 . . Destroy Structure 88 | . 46 . 42 . . Lose Combat Pursuer 120 | . 15 . 105 . . Influence Decreases 1335 | . 128 249 580 258 120 Entered New Map 449 | . . 141 . 188 120 Time Decay 806 | . 128 108 510 60 . Lost Part 80 | . . . 70 10 . Squads Dispatched 4 | . 2 . 2 . . Investigation 2 | . 1 . 1 . . Extermination . | . . . . . . Reinforcement 2 | . 1 . 1 . . Assault . | . . . . . . Garrison . | . . . . . . Intercept . | . . . . . . Searches Triggered . | . . . . . . Construction Impeded . | . . . . . . Haulers Reinforced . | . . . . . . Active Scanning Responses . | . . . . . . Cargo Convoy Interrupts . | . . . . . . Stealth | -11 -10 -10 -9 -9 -9 --------- Run | Yrd Mat Min Mat Min Exi Distress Signals 6 | . 2 . 4 . . Communications Jammed . | . . . . . . Distress Signals . | . . . . . . Times Spotted 64 | . 10 1 43 2 8 Peak Tracking Total 9 | . 5 1 8 2 9 Tactical Retreats 5 | . 1 . 4 . . Traps | -11 -10 -10 -9 -9 -9 ------- Run | Yrd Mat Min Mat Min Exi Traps Triggered 2 | . 1 . 1 . . Indirectly . | . . . . . . Trap Hack Attempts . | . . . . . . Triggered . | . . . . . . Disarmed . | . . . . . . Reprogrammed . | . . . . . . Reused . | . . . . . . Traps Extracted . | . . . . . . Installed . | . . . . . . Triggered . | . . . . . . Machines | -11 -10 -10 -9 -9 -9 ---------- Run | Yrd Mat Min Mat Min Exi Machines Disabled 16 | . 11 . 1 . 4 Max in Single Turn 8 | . 8 . 1 . 2 Machines Repaired . | . . . . . . Machines Dismantled . | . . . . . . Machines Sabotaged . | . . . . . . Overloaded Fab Kills . | . . . . . . Hacking | -11 -10 -10 -9 -9 -9 --------- Run | Yrd Mat Min Mat Min Exi Machines Accessed 11 | . 3 . 7 . 1 Terminals 9 | . 2 . 7 . . Fabricators . | . . . . . . Repair Stations . | . . . . . . Recycling Units 1 | . 1 . . . . Scanalyzers . | . . . . . . Garrison Access . | . . . . . . Total Hacks 38 | . 8 . 29 . 1 Successful 18 | . 3 . 14 . 1 Failed 19 | . 5 . 14 . . Catastrophic 1 | . 1 . . . . Database Lockouts 1 | . . . 1 . . Manual 34 | . 4 . 29 . 1 Terminals 36 | . 7 . 29 . . Fabricators . | . . . . . . Repair Stations . | . . . . . . Recycling Units 1 | . 1 . . . . Scanalyzers . | . . . . . . Garrison Access . | . . . . . . Terminal Hacks 10 | . 2 . 7 . 1 Prototype ID Bank 6 | . . . 6 . . Branch Access Points 1 | . 1 . . . . Hauler Manifests 1 | . 1 . . . . Zone Layout 1 | . . . 1 . . Proto ID Catalog 1 | . . . . . 1 Fabricator Hacks . | . . . . . . Repair Station Hacks . | . . . . . . Recycling Unit Hacks 1 | . 1 . . . . Retrieve Components 1 | . 1 . . . . Scanalyzer . | . . . . . . Garrison Access Hacks . | . . . . . . Unauthorized Hacks 6 | . . . 6 . . Terminals 6 | . . . 6 . . Botnet 6 | . . . 6 . . Fabricators . | . . . . . . Repair Stations . | . . . . . . Recycling Units . | . . . . . . Scanalyzers . | . . . . . . Garrison Access . | . . . . . . Data Cores Recovered . | . . . . . . Used . | . . . . . . Hacking Detections 9 | . 2 . 7 . . Full Trace Events 1 | . . . 1 . . Feedback Events . | . . . . . . Feedback Blocked . | . . . . . . Robot Schematics Acquired . | . . . . . . Robots Built . | . . . . . . Authchips . | . . . . . . Time . | . . . . . . Total Robot Build Rating . | . . . . . . Part Schematics Acquired . | . . . . . . Parts Built . | . . . . . . Authchips . | . . . . . . Time . | . . . . . . Total Part Build Rating . | . . . . . . Part Studies Acquired . | . . . . . . Parts Repaired . | . . . . . . Time . | . . . . . . Parts Recycled . | . . . . . . Recycled Matter . | . . . . . . Retrieved Matter . | . . . . . . Retrieved Components 2 | . 2 . . . . Parts Scanalyzed . | . . . . . . Part Schematics Acquired . | . . . . . . Parts Damaged . | . . . . . . Bothacking | -11 -10 -10 -9 -9 -9 ------------ Run | Yrd Mat Min Mat Min Exi Used RIF Installer . | . . . . . . Robots Hacked . | . . . . . . Non-combat . | . . . . . . Combat . | . . . . . . Robot Hacks Applied . | . . . . . . Relay Couplers Released . | . . . . . . Fabnet Peak Effective % . | . . . . . . Robots Rewired . | . . . . . . Allies Hacked . | . . . . . . Hacks Repelled . | . . . . . . Allies | -11 -10 -10 -9 -9 -9 -------- Run | Yrd Mat Min Mat Min Exi Total Allies . | . . . . . . Largest Group . | . . . . . . Highest-Rated Group . | . . . . . . Highest-Rated Ally . | . . . . . . Total Orders . | . . . . . . Ally Attacks . | . . . . . . Total Damage . | . . . . . . Kills . | . . . . . . Allies Corrupted . | . . . . . . Allies Melted . | . . . . . . Intel | -11 -10 -10 -9 -9 -9 ------- Run | Yrd Mat Min Mat Min Exi Active Infowar (turns) 2584 | . 176 472 1476 122 338 T.N.C. 2584 | . 176 472 1476 122 338 Robot Analysis Total . | . . . . . . Derelict Logs Recovered . | . . . . . . Drone Launches . | . . . . . . Drone Recoveries . | . . . . . . Exploration | -11 -10 -10 -9 -9 -9 ------------- Run | Yrd Mat Min Mat Min Exi Turns Passed 3017 | . 609 472 1476 122 338 Spaces Moved 1551 | 1 350 288 684 69 159 Core 3 | . . . . . 3 Treads 1307 | . 110 288 684 69 156 Legs 241 | 1 240 . . . . Wheels . | . . . . . . Hover . | . . . . . . Flight . | . . . . . . Fastest Speed 120 | 120 120 160 160 160 160 Average Speed 159 | 120 154 160 160 160 164 Slowest Speed 500 | 120 240 160 240 160 500 Overloaded Moves . | . . . . . . Propulsion Burnouts . | . . . . . . Robots Hopped . | . . . . . . Potential Cave-ins . | . . . . . . Cave-ins Triggered . | . . . . . . Exploration Rate (%) 39 | 3 67 54 58 13 40 Regions Visited 5 Branch Regions 3 Pre-discovered Areas 1 | . . 1 . . . Known Exits Taken 1 | . 1 . . . . Unknown Exits Taken 4 | 1 . 1 1 1 . Scrap Searched . | . . . . . . Spaces Dug . | . . . . . . Terrain Destroyed 125 | . 52 . 38 . 35 Melee . | . . . . . . Projectile . | . . . . . . AOE 125 | . 52 . 38 . 35 Terrain Rammed . | . . . . . . Walls Destroyed . | . . . . . . Machines Disabled . | . . . . . . Actions | -11 -10 -10 -9 -9 -9 --------- Run | Yrd Mat Min Mat Min Exi Total 1828 | . 390 293 875 74 196 Wait 36 | . 1 2 14 . 19 Move 1546 | . 349 287 683 68 159 Hop . | . . . . . . Pick Up 16 | . 9 . 7 . . Fast Attach 9 | . 2 . 5 1 1 Attach 7 | . 2 . 5 . . Detach 3 | . 1 . 1 . 1 Swap 28 | . 1 . 27 . . Drop 22 | . 7 . 13 . 2 Fire 156 | . 17 3 117 5 14 Melee . | . . . . . . Ram . | . . . . . . Kick 1 | . 1 . . . . Crush 4 | . . 1 3 . . Escape Stasis . | . . . . . . Rewire . | . . . . . . Trap . | . . . . . . Miscellaneous . | . . . . . . Route ------- -11/Scrapyard -10/Materials (discovered 4 exits: *Mat x2 / *Min x2) -10/Mines -9/Materials (discovered 3 exits: [*Mat x2] / [*Min]) -9/Mines -9/Exiles (discovered 1 exit: [*Min]) History --------- Turn | Location | Event 1 | -11/Scrapyard | Discovered new exit (range 0) 1 | -11/Scrapyard | Entered Materials 161 | -10/Materials | Discovered new exit (range 16) 303 | -10/Materials | Build established: Mutant 528 | -10/Materials | Discovered new exit (range 15) 548 | -10/Materials | Identified exit to Mines 610 | -10/Materials | Entered Mines 716 | -10/Mines | Found a Scrap Suit stashed away for nefarious purposes 967 | -10/Mines | Assembled infested the area 972 | -10/Mines | Assisted by a Guerilla fighting off Assembled 994 | -10/Mines | Discovered new exit (range 12) 999 | -10/Mines | Learned location of Storage (-8) 1082 | -10/Mines | Entered Materials 1082 | -9/Materials | Evolved 2 slots: Propulsion x1, Utility x1 1594 | -9/Materials | Build established: Scavenger-Mutant 1608 | -9/Materials | Discovered new exit (range 10) 2032 | -9/Materials | Discovered new exit (range 13) 2097 | -9/Materials | Core integrity fell below 50% 2133 | -9/Materials | Lost 5 parts (1p2n1u1w) 2507 | -9/Materials | Discovered new exit (range 16) 2542 | -9/Materials | Central database locked down 2558 | -9/Materials | Entered Mines 2600 | -9/Mines | Met a Derelict bent on vengeance 2625 | -9/Mines | Found a hidden stash of uninstalled traps 2672 | -9/Mines | Deemed a non-threat by the Exiles lab entrance 2673 | -9/Mines | Discovered new exit (range 5) 2680 | -9/Mines | Entered Exiles 2708 | -9/Exiles | Discovered new exit (range 15) 2727 | -9/Exiles | Met 8R-AWN 2751 | -9/Exiles | Met EX-HEX 2797 | -9/Exiles | Met EX-BIN 2816 | -9/Exiles | Aligned with FarCom system 2818 | -9/Exiles | Given EX-Vault access code 2863 | -9/Exiles | Opened EX-Vault 2884 | -9/Exiles | Found YOLO Cannon 2917 | -9/Exiles | Warned to stay clear of 0b10 Research branches 2936 | -9/Exiles | Attacked by the Exiles 2939 | -9/Exiles | Destroyed EX-BIN 2988 | -9/Exiles | Destroyed 7 combat bots 3000 | -9/Exiles | Core integrity fell below 20% 3018 | -9/Exiles | Destroyed by 8R-AWN with 8R-AWN's Boregun Last Messages --------------- 03005_ Penetrated by HV Slug. 03005_ HV Slug penetrates FarCom Aligner. 03007_ Penetrated by HV Slug. 03007_ HV Slug penetrates FarCom Aligner. 03007_ Penetrated by HV Slug. 03007_ Critical hit (Destroy). 03007_ YOLO Cannon destroyed. 03007_ HV Slug penetrates FarCom Aligner. 03009_ HV Slug penetrates Wall. 03009_ Penetrated by HV Slug. 03012_ Critical hit (Destroy). 03012_ Imp. Ion Engine destroyed. 03012_ Penetrated by HV Slug. 03014_ HV Slug penetrates FarCom Aligner. 03016_ Penetrated by HV Slug. 03016_ HV Slug penetrates FarCom Aligner. 03018_ Penetrated by HV Slug. 03018_ Imp. Heat Sink destroyed. 03018_ HV Slug penetrates FarCom Aligner. 03018_ Penetrated by HV Slug. Map ----- +----------------------------------------------------+ | ????????????????## ##????????????????????????? | | ????????????????#X #?????????????????????????? | | ????????????????## #?????????????????????????? | | ?????????????????# #?????????????????????????? | | ?????????????????# #???####??????????????????? | | ?????????????????# #??"""""??????????????????? | | ?????????????????# ## """#?????????????????? | | ?????????????????# X""#?????????????????? | | ?????????????????# ## """#?????????????????? | | ???????????####??# #??"""""??????????????????? | | ??????????""""""?# #???####??????????????????? | | ??????????"""" ## #?????????????????????????? | | ?????????#""X" #?????????????????????????? | | ?????????#" #?????????????????????????? | | ?????????#" ## #??????##?????????????????? | | ?????????#""""""?# #?#####;###???????????????? | | ?????????##"###??# #?#" " ""#???????????????? | | ?????????????????# #?#""" "#???????????????? | | ?????????????????# #?#" " #???????????????? | | ????????????????## ###" " #???????????????? | | ????????????????#" #???????????????? | | ????????????????#" #???????????????? | | ????????????????#" #???????????????? | | ????????????????#" #???????????????? | | ????????????????#" #???????????????? | | ????????????????#" @ #???????????????? | | ????????????????## """"?????????????? | | ????????????????#; """###?????????????? | | ???????????????# ; """""??????????????? | | ???????????????# ; # "?????????????? | | ??????????????# % """"""# "?????????????? | | ??????????????# ;;#######???????????????? | | ?????????????# ;; ##?????????????????????? | | ?????????????#;; ??????????????????????? | | ????????????"" g ??????????????????????? | | ???????????"" ??###########?????????? | | ??????????""" ###"""""""""##????????? | | ????????? " " """ """"##???????? | | ??????? "" " #???????? | | ??????? " """#???????? | | ???????? " "#???????? | | ???????? " "##??????? | | ???????? ""###????? | | ????????? """""" """#????? | | ????????? ######""" "#????# | | ?????????? ""#?????#####""" ##???# | | ???????????????????????##""" ##?## | | ????????????????????????#"""" ### | | ????????????????????????#"" | | ?????????????????????????""" | +----------------------------------------------------+ Best States ------------- Heat Dissipation 42 Energy Generation 14 Energy Capacity 280 Matter Stores 300 Matter Capacity 300 Sight Range 16 Terrain Scan Density 10 Armor Coverage 150 Evasion (%) 55 Recoil Reduction 3 Item Schematics ----------------- None Robot Schematics ------------------ None Fabricated ------------ Nothing Repaired ---------- Nothing Studied --------- None Alien Tech Used ----------------- None Achievements -------------- None Challenges ------------ None Game ------ Seed DynamicClaymoresInterpreter Manual? 0 Play Time 00:15:43 Cumulative 301.9 hours Start 2026.01.11 @ 13:53:35 End 2026.01.11 @ 14:07:20 Sessions 1 Manual Loads 0 Difficulty Rogue Special Mode None Game No. 363 Rogue 362 Adventurer 1 Explorer 0 Win Type - Total 3 Types 1/0/0/1/1/0/0/0/0/0 Lore% 76 Gallery% 69 Achievement% 58 Wizard Run 0 Options --------- Layout 0 ASCII 0 Keyboard 0 Movement Numpad Keybinds 0 Fullscreen 0 Font 20/SmallcapsGlow Map View 76x50 Zoom Use 0% Tactical HUD 1 Map Filters NONE Filters NONE Steam 1 RUN: 8d0e37d4-5e37-49e7-bcb8-135e21280ca0